Cogmind - Beta 10.2 @@@ ROGUE MODE // 2022.02.19 @ 02:56:22 Player: woegarden Result: Destroyed by G-34 Mercenary with Small Laser Performance ------------- Evolutions (0) 0 Regions Visited (1) 200 Robots Destroyed (5) 25 Value Destroyed (72) 72 Prototype IDs (0) 0 Alien Tech Used (0) 0 Bonus (0) 0 TOTAL SCORE: 297 Bonus ------- None Cogmind --------- Core Integrity 0/250 Matter 300/300 Energy 100/100 System Corruption 1% Temperature Cool (6) Movement Core (100) Ox1 Location -10/Materials Parts ------- > --- POWER (1) -------- (None) > --- PROPULSION (2) --- (None) > --- UTILITY (2) ------ Small Storage Unit Targeting Computer > --- WEAPON (2) ------- (None) > --- INVENTORY (6) ---- Light Ion Engine Hover Unit Sensor Array Signal Interpreter ECM Suite Datajack Peak State ------------ > --- POWER ------------ Light Ion Engine > --- PROPULSION ------- Hover Unit Hover Unit > --- UTILITY ---------- Small Storage Unit Targeting Computer > --- WEAPON ----------- EM Pulse Gun Light Assault Rifle > --- INVENTORY -------- Aluminum Leg Aluminum Leg Hover Unit Hover Unit Datajack [Rating: 7] Favorites ----------- Power Light Ion Engine Engine Light Ion Engine Propulsion Hover Unit Leg Aluminum Leg Hover Unit Hover Unit Utility Small Storage Unit Storage Small Storage Unit Processor Targeting Computer Weapon Light Assault Rifle Energy Gun EM Pulse Gun Ballistic Gun Light Assault Rifle Build | -11 -10 ------- Run | Scr Mat Slots Evolved . | . . Power . | . . Propulsion . | . . Utility . | . . Weapon . | . . Parts Attached 10 | 6 4 Power 1 | 1 . Engine 1 | 1 . Core . | . . Reactor . | . . Propulsion 5 | 2 3 Treads . | . . Leg 2 | 2 . Wheel . | . . Hover 3 | . 3 Flight . | . . Utility 2 | 1 1 Device . | . . Storage 1 | 1 . Processor 1 | . 1 Hackware . | . . Protection . | . . Artifact . | . . Weapon 2 | 2 . Energy Gun 1 | 1 . Energy Cannon . | . . Ballistic Gun 1 | 1 . Ballistic Cannon . | . . Launcher . | . . Special Weapon . | . . Impact Weapon . | . . Slashing Weapon . | . . Piercing Weapon . | . . Special Melee Weapon . | . . Unidentified Prototypes . | . . Parts Lost 5 | . 5 Power 1 | . 1 Propulsion 2 | . 2 Utility . | . . Weapon 2 | . 2 Highest Loss Streak 5 | . 5 Average Slot Usage (%) 88 | . 88 Engine 12 | . 12 Leg 5 | . 5 Hover 19 | . 19 Storage 14 | . 14 Processor 9 | . 9 Energy Gun 11 | . 11 Ballistic Gun 14 | . 14 Naked Turns . | . . Heaviest Build 10 | 10 10 Greatest Support 20 | 20 20 Greatest Overweight (x) 3 | 3 1 Average Overweight (x) . | . . Largest Inventory Capacity 6 | 6 6 Average Capacity 5 | 5 6 Most Carried 6 | 4 6 Average Carried 4 | 2 4 Final Capacity 6 | 6 6 Final Carried 6 | 2 6 Class Distribution -------------------- 100% | Mutant Dominant Class ---------------- Mutant | -10/Materials Resources | -11 -10 ----------- Run | Scr Mat Matter Collected 305 | 229 76 Remotely . | . . Salvage Created 163 | . 163 Parts 13 | . 13 Haulers Intercepted 1 | . 1 Recyclers Shooed . | . . Parts Field Recycled . | . . Retrieved Matter . | . . Parts Self-Destructed . | . . Prevented . | . . Kills | -11 -10 ------- Run | Scr Mat Combat Hostiles Destroyed 3 | . 3 Guns 3 | . 3 Classes Destroyed 4 | . 4 Hauler 1 | . 1 Watcher 1 | . 1 Swarmer 2 | . 2 Grunt 1 | . 1 Best Kill Streak 2 | . 2 Combat Bots Only 2 | . 2 Max Kills in Single Turn 1 | . 1 Gunslinging . | . . Exploded . | . . Melee . | . . Uniques/NPCs Destroyed . | . . Combat | -11 -10 -------- Run | Scr Mat Damage Taken 552 | . 552 Core 250 | . 250 Absorbed by Shields . | . . Core Remaining (%) 100 | 100 . Volleys Fired 23 | . 23 Largest 2 | . 2 Hottest 60 | . 60 Shots Fired 41 | . 41 Gun 41 | . 41 Cannon . | . . Launcher . | . . Special . | . . Kinetic 23 | . 23 Thermal . | . . Explosive . | . . Electromagnetic 18 | . 18 Robot Hit Streak 3 | . 3 Robot Miss Streak 4 | . 4 Penetration Max . | . . Secondary Targets . | . . Shots Hit Robots 20 | . 20 Core Hits 9 | . 9 Critical Hits . | . . Critical Kills . | . . Critical Parts Destroyed . | . . Melee Attacks . | . . Impact . | . . Slashing . | . . Piercing . | . . Sneak Attacks . | . . Combat Hostiles . | . . Follow-up Attacks . | . . Damage Inflicted 231 | . 231 Guns 151 | . 151 Cannons . | . . Explosions 71 | . 71 Melee . | . . Ramming 9 | . 9 Kinetic 41 | . 41 Thermal 71 | . 71 Explosive . | . . Electromagnetic 110 | . 110 Impact . | . . Slashing . | . . Piercing . | . . Highest Corruption 1 | . 1 Average Corruption 1 | . 1 Corruption Purged . | . . Effects 1 | . 1 Message Errors 1 | . 1 Overload Shots . | . . Overflow Damage . | . . Projectiles . | . . Explosions . | . . Melee . | . . Knockbacks . | . . Impact . | . . Kinetic . | . . Secondary . | . . Self-Inflicted Damage 37 | . 37 Shots 1 | . 1 Rammed 2 | . 2 Targets Rammed 2 | . 2 Kicked . | . . Crushed . | . . Highest Temperature 102 | . 102 Average Temperature 42 | . 42 Received Heat Transfer 42 | . 42 Siege Activations . | . . Robots Corrupted . | . . Combat Hostiles . | . . Parts Fried . | . . Impact Corruptions . | . . Robots Melted . | . . Combat Hostiles . | . . Parts Melted 1 | . 1 Heat Transferred 100 | . 100 Parts Sabotaged . | . . Parts Stolen . | . . Parts Stripped . | . . Power Chain Reactions 1 | . 1 Missiles Intercepted . | . . Alert | -11 -10 ------- Run | Scr Mat Peak Influence 159 | . 159 Initial . | . . Average 40 | . 54 Maximum Alert Level . | . . Low Security (%) 100 | 100 100 Level 1 . | . . Level 2 . | . . Level 3 . | . . Level 4 . | . . Level 5 . | . . High Security . | . . Max Security . | . . Squads Dispatched 2 | . 2 Investigation . | . . Extermination . | . . Reinforcement 2 | . 2 Assault . | . . Garrison . | . . Intercept . | . . Construction Impeded . | . . Haulers Reinforced . | . . Stealth | -11 -10 --------- Run | Scr Mat Distress Signals 3 | . 3 Communications Jammed . | . . Distress Signals . | . . Times Spotted 17 | . 17 Peak Tracking Total 8 | . 8 Tactical Retreats 2 | . 2 Traps | -11 -10 ------- Run | Scr Mat Traps Triggered . | . . Indirectly . | . . Trap Hack Attempts . | . . Triggered . | . . Disarmed . | . . Reprogrammed . | . . Reused . | . . Traps Extracted . | . . Installed . | . . Triggered . | . . Machines | -11 -10 ---------- Run | Scr Mat Machines Disabled . | . . Max in Single Turn . | . . Machines Sabotaged . | . . Garrisons Compromised . | . . Overloaded Fab Kills . | . . Fab Network Shutdowns . | . . Hacking | -11 -10 --------- Run | Scr Mat Machines Accessed . | . . Terminals . | . . Fabricators . | . . Repair Stations . | . . Recycling Units . | . . Scanalyzers . | . . Garrison Access . | . . Total Hacks . | . . Successful . | . . Failed . | . . Catastrophic . | . . Database Lockouts . | . . Manual . | . . Terminals . | . . Fabricators . | . . Repair Stations . | . . Recycling Units . | . . Scanalyzers . | . . Garrison Access . | . . Terminal Hacks . | . . Fabricator Hacks . | . . Repair Station Hacks . | . . Recycling Unit Hacks . | . . Scanalyzer . | . . Garrison Access Hacks . | . . Unauthorized Hacks . | . . Terminals . | . . Fabricators . | . . Repair Stations . | . . Recycling Units . | . . Scanalyzers . | . . Garrison Access . | . . Data Cores Recovered . | . . Used . | . . Hacking Detections . | . . Full Trace Events . | . . Feedback Events . | . . Feedback Blocked . | . . Robot Schematics Acquired . | . . Robots Built . | . . Matter . | . . Time . | . . Total Robot Build Rating . | . . Part Schematics Acquired . | . . Parts Built . | . . Matter . | . . Time . | . . Total Part Build Rating . | . . Parts Repaired . | . . Time . | . . Parts Recycled . | . . Recycled Matter . | . . Retrieved Matter . | . . Retrieved Components . | . . Parts Scanalyzed . | . . Part Schematics Acquired . | . . Parts Damaged . | . . Bothacking | -11 -10 ------------ Run | Scr Mat Used RIF Installer . | . . Robots Hacked . | . . Non-combat . | . . Combat . | . . Robot Hacks Applied . | . . Relay Couplers Released . | . . Robots Rewired . | . . Allies Hacked . | . . Hacks Repelled . | . . Allies | -11 -10 -------- Run | Scr Mat Total Allies . | . . Largest Group . | . . Highest-Rated Group . | . . Highest-Rated Ally . | . . Total Orders . | . . Ally Attacks . | . . Total Damage . | . . Kills . | . . Allies Corrupted . | . . Allies Melted . | . . Intel | -11 -10 ------- Run | Scr Mat Robot Analysis Total . | . . Derelict Logs Recovered . | . . Drone Launches . | . . Drone Recoveries . | . . Exploration | -11 -10 ------------- Run | Scr Mat Turns Passed 316 | 78 238 Spaces Moved 267 | 52 215 Core 49 | 26 23 Treads . | . . Legs 57 | 26 31 Wheels . | . . Hover 161 | . 161 Flight . | . . Fastest Speed 50 | 50 56 Average Speed 80 | 125 69 Slowest Speed 200 | 200 120 Overloaded Moves . | . . Propulsion Burnouts . | . . Robots Hopped . | . . Cave-ins Triggered . | . . Exploration Rate (%) 21 | 4 39 Regions Visited 1 Branch Regions . Pre-discovered Areas . | . . Known Exits Taken . | . . Unknown Exits Taken 1 | 1 . Scrap Searched . | . . Spaces Dug . | . . Terrain Destroyed 3 | . 3 Melee . | . . Projectile . | . . AOE 3 | . 3 Terrain Rammed . | . . Walls Destroyed . | . . Machines Disabled . | . . Actions | -11 -10 --------- Run | Scr Mat Total 334 | 65 269 Wait 2 | . 2 Move 266 | 51 215 Hop . | . . Pick Up 22 | 8 14 Fast Attach . | . . Attach 7 | 6 1 Detach . | . . Swap 3 | . 3 Drop 9 | . 9 Fire 23 | . 23 Melee . | . . Ram 2 | . 2 Kick . | . . Crush . | . . Escape Stasis . | . . Rewire . | . . Trap . | . . Miscellaneous . | . . Route ------- -11/Scrapyard -10/Materials (discovered 1 exit: [*Mat]) History --------- Turn | Location | Event 2 | -11/Scrapyard | Met Revision 17 45 | -11/Scrapyard | Discovered new exit (range 15) 79 | -11/Scrapyard | Entered Materials 299 | -10/Materials | Core integrity fell below 50% 313 | -10/Materials | Build established: Mutant 314 | -10/Materials | Core integrity fell below 20% 316 | -10/Materials | Discovered new exit (range 14) 317 | -10/Materials | Destroyed by G-34 Mercenary with Small Laser Last Messages --------------- 00269_ A-02 Transporter destroyed. 00270_ EM Pulse Gun destroyed. 00271_ Acquired 36 matter. 00272_ K-01 Serf collects debris. 00273_ Dropped Hover Unit. 00273_ Acquired Signal Interpreter. 00275_ K-01 Serf collects debris. 00284_ O-16 Technician: "IFF HANDSHAKE FAILED. SECURING TERMINAL." 00285_ O-16 Technician uses terminal to summon reinforcements. 00285_ ALERT: Hostiles spotted, dispatching reinforcements to Terminal M008. 00285_ O-16 Technician locks terminal. 00286_ Hover Unit destroyed. 00291_ MY=10K,1JXT TWJAQE#IH1HY #Q&9%GW,N 00291_ Lgt. Ion Engine destroyed. 00292_ Hover Unit destroyed. 00295_ S-10 Pest destroyed. 00307_ W-16 Scout sends out distress signal. 00312_ Lgt. Assault Rifle destroyed. 00316_ EXIT=FOUND Map ----- +----------------------------------------------------+ | ????????????????# ????????????# | | ?????????+###???# ????????????# | | ?????????? ???# ????????????# | | ??????????? ??# #????######## | | ???????????? ## ##???# = # | | ????????????? # ##### # | | ?????????????? / / + | | ???????????????# %*##### """ # | | ???????????????# #???# """ # | | ???????????????# #???# """ # | | ???????????????# #???######## | | ???????????#+#?# #??????????# | | ???????????# #?# #??????????# | | ???????????# #?# ##?????????# | | ?????####### ### T#?????????# | | ?????# ##?????????# | | ?????# g #??????????# | | ###??# sg #??????????# | | # T?# ss####+###??????????# | | # ?# #? ???????????# | | # # ## """ #?????????? | | # # ## """ #?????????? | | # + ## """ #?????????? | | # # ## #?????????? | | # # ##[ #?????????? | | # ?#@ #########?????????? | | # ?# #?????????????????? | | ###??# g#?????????????????? | | ?????# #?????????????????? | | ?????# #?????????????????? | | ?????# ????????????????? | | ?????# ???????????????? | | ?????# ??????????????? | | ?????########+##